Cogmind - Beta 15 @@@ ROGUE MODE // 2025.05.07 @ 02:27:58 Player: Big Pilgrim Result: Destroyed by S-10 Pest with Light Assault Rifle Performance ------------- Evolutions (1) 500 Regions Visited (2) 400 Robots Destroyed (3) 15 Value Destroyed (65) 65 Prototype IDs (0) 0 Alien Tech Used (0) 0 Bonus (200) 200 TOTAL SCORE: 1180 Bonus ------- Pacifist 200 Cogmind --------- Core Integrity 0/400 Matter 284/300 Energy 99/100 System Corruption 0% Temperature Cool (0) Movement Treading (160) Location -9/Materials Parts ------- > --- POWER (1) -------- (None) > --- PROPULSION (4) --- Light Treads Light Treads > --- UTILITY (2) ------ Small Storage Unit > --- WEAPON (2) ------- Great Maul > --- INVENTORY (8) ---- Wheel Compact Wheel Heat Sink Great Maul Peak State ------------ > --- POWER ------------ Light Ion Engine > --- PROPULSION ------- Aluminum Leg Aluminum Leg Aluminum Leg Aluminum Leg > --- UTILITY ---------- Small Storage Unit > --- WEAPON ----------- Small Laser Small Laser > --- INVENTORY -------- Light Treads Light Treads Wheel Compact Wheel Heat Sink Light Assault Rifle [Rating: 8] Favorites ----------- Power Light Ion Engine Engine Light Ion Engine Propulsion Aluminum Leg Treads Light Treads Leg Aluminum Leg Utility Small Storage Unit Storage Small Storage Unit Weapon Small Laser Energy Gun Small Laser Ballistic Gun Light Assault Rifle Impact Weapon Great Maul Build | -11 -10 -9 ------- Run | Yrd Mat Mat Slots Evolved 2 | . . 2 Power . | . . . Propulsion 2 | . . 2 Utility . | . . . Weapon . | . . . Parts Attached 13 | 6 1 6 Power 2 | 1 1 . Engine 2 | 1 1 . Core . | . . . Reactor . | . . . Propulsion 6 | 2 . 4 Treads 2 | . . 2 Leg 4 | 2 . 2 Wheel . | . . . Hover . | . . . Flight . | . . . Utility 1 | 1 . . Device . | . . . Storage 1 | 1 . . Processor . | . . . Hackware . | . . . Protection . | . . . Artifact . | . . . Weapon 4 | 2 . 2 Energy Gun 2 | 2 . . Energy Cannon . | . . . Ballistic Gun 1 | . . 1 Ballistic Cannon . | . . . Launcher . | . . . Special Weapon . | . . . Impact Weapon 1 | . . 1 Slashing Weapon . | . . . Piercing Weapon . | . . . Special Melee Weapon . | . . . Unidentified Prototypes . | . . . Parts Lost 9 | . 1 8 Power 2 | . 1 1 Propulsion 4 | . . 4 Utility . | . . . Weapon 3 | . . 3 Highest Loss Streak 8 | . 1 8 To Critical Strikes . | . . . Average Backups 5 | 3 6 5 Power . | . 1 . Propulsion 3 | 2 4 4 Utility . | . . 1 Weapon . | . 1 . Tool/Special . | . . . Unused Backups 2 | . . 2 Power . | . . . Propulsion 2 | . . 2 Utility . | . . . Weapon . | . . . Tool/Special . | . . . Average Slot Usage (%) 76 | . 82 66 Engine 9 | . 11 6 Treads 2 | . . 5 Leg 26 | . 28 24 Storage 12 | . 14 11 Energy Gun 22 | . 28 14 Ballistic Gun 1 | . . 2 Impact Weapon 1 | . . 2 Peak Build Rating 8 | 6 6 8 Average Rating 5 | 3 5 6 On Entrance 4 | . 6 6 Naked Turns . | . . . Heaviest Build 10 | 10 10 10 Greatest Support 40 | 20 20 40 Greatest Overweight (x) 1 | 1 . 1 Average Overweight (x) . | . . . Largest Inventory Capacity 8 | 8 8 8 Average Capacity 7 | 7 8 8 Most Carried 8 | 8 8 8 Average Carried 5 | 4 6 5 Final Capacity 8 | 8 8 8 Final Carried 8 | 6 8 4 Class Distribution -------------------- 100% | Mutant Dominant Class ---------------- Mutant | -10/Materials Mutant | -9/Materials Resources | -11 -10 -9 ----------- Run | Yrd Mat Mat Matter Collected 263 | 197 52 14 Remotely . | . . . Salvage Created 74 | . . 74 Parts 1 | . . 1 Haulers Intercepted . | . . . Recyclers Shooed 1 | 1 . . Parts Field Recycled . | . . . Retrieved Matter . | . . . Parts Self-Destructed . | . . . Prevented . | . . . Kills | -11 -10 -9 ------- Run | Yrd Mat Mat Combat Hostiles Destroyed 3 | . . 3 Melee 1 | . . 1 Classes Destroyed 2 | . . 2 Swarmer 2 | . . 2 Sentry 1 | . . 1 Best Kill Streak 3 | . . 3 Combat Bots Only 3 | . . 3 Max Kills in Single Turn 1 | . . 1 Gunslinging . | . . . Exploded . | . . . Melee 1 | . . 1 Uniques/NPCs Destroyed . | . . . Combat | -11 -10 -9 -------- Run | Yrd Mat Mat Hostile Shots Fired 228 | . 41 187 Missed 70 | . 20 50 Hits 158 | . 21 137 Projectile 158 | . 21 137 Critical Strikes 1 | . . 1 Damage Taken 1547 | 2 271 1274 Core 451 | 2 47 402 Absorbed by Shields . | . . . Core Remaining (%) 89 | 99 80 . Volleys Fired 7 | . 2 5 Largest 2 | . 2 2 Hottest 80 | . 80 80 Shots Fired 13 | . 4 9 Gun 13 | . 4 9 Cannon . | . . . Launcher . | . . . Special . | . . . Kinetic 3 | . . 3 Thermal 10 | . 4 6 Explosive . | . . . Electromagnetic . | . . . Robot Hit Streak 7 | . 2 7 Robot Miss Streak 2 | . 1 2 Penetration Max . | . . . Secondary Targets . | . . . Shots Hit Robots 16 | . 3 13 Core Hits 1 | 1 . . Critical Kills . | . . . Critical Parts Destroyed 2 | . . 2 Critical Strikes 2 | . . 2 Smash 2 | . . 2 Melee Attacks 7 | . . 7 Impact 7 | . . 7 Slashing . | . . . Piercing . | . . . Sneak Attacks . | . . . Combat Hostiles . | . . . Follow-up Attacks . | . . . Damage Inflicted 332 | 5 33 294 Guns 101 | . 33 68 Cannons . | . . . Explosions . | . . . Melee 219 | . . 219 Ramming 12 | 5 . 7 Kinetic 23 | . . 23 Thermal 78 | . 33 45 Explosive . | . . . Electromagnetic . | . . . Impact 219 | . . 219 Slashing . | . . . Piercing . | . . . Highest Corruption . | . . . Average Corruption . | . . . Corruption Purged . | . . . Corruption Blocked . | . . . Overload Shots . | . . . Overflow Damage 81 | . . 81 Projectiles . | . . . Explosions . | . . . Melee 81 | . . 81 Knockbacks 1 | . . 1 Impact 1 | . . 1 Kinetic . | . . . Secondary . | . . . Self-Inflicted Damage 2 | 2 . . Shots . | . . . Rammed 2 | 2 . . Targets Rammed 3 | 2 . 1 Kicked 1 | . . 1 Crushed . | . . . Highest Temperature 51 | . 51 18 Average Temperature 18 | . 30 7 Received Heat Transfer 309 | . 156 153 Siege Activations . | . . . Martial Activations . | . . . Shielding Activations . | . . . Robots Disrupted . | . . . Combat Hostiles . | . . . Robots Corrupted 2 | . . 2 Combat Hostiles 2 | . . 2 Parts Fried 1 | . . 1 Impact Corruptions 6 | . . 6 Robots Melted . | . . . Combat Hostiles . | . . . Parts Melted . | . . . Heat Transferred 175 | . 75 100 Parts Sabotaged . | . . . Parts Stolen . | . . . Parts Stripped . | . . . Power Chain Reactions . | . . . Alert | -11 -10 -9 ------- Run | Yrd Mat Mat Maximum Alert Level . | . . . Low Security (%) 100 | 100 100 100 Level 1 . | . . . Level 2 . | . . . Level 3 . | . . . Level 4 . | . . . Level 5 . | . . . High Security . | . . . Max Security . | . . . Peak Influence 50 | . 40 50 Initial 3 | . . 3 Average 7 | . 11 6 Influence Increases 130 | . 60 70 Destroy 0b10 Robot/C 60 | . . 60 Destroy Leader 10 | . . 10 Lose Combat Pursuer 60 | . 60 . Influence Decreases 80 | . 50 30 Entered New Map 7 | . . 7 Time Decay 53 | . 40 13 Lost Part 20 | . 10 10 Squads Dispatched 3 | . 2 1 Investigation 1 | . 1 . Extermination . | . . . Reinforcement 2 | . 1 1 Assault . | . . . Garrison . | . . . Intercept . | . . . Searches Triggered . | . . . Construction Impeded . | . . . Haulers Reinforced . | . . . Active Scanning Responses . | . . . Cargo Convoy Interrupts . | . . . Stealth | -11 -10 -9 --------- Run | Yrd Mat Mat Distress Signals . | . . . Communications Jammed . | . . . Distress Signals . | . . . Times Spotted 19 | . 10 9 Peak Tracking Total 8 | . 6 8 Tactical Retreats 2 | . 2 . Traps | -11 -10 -9 ------- Run | Yrd Mat Mat Traps Triggered . | . . . Indirectly . | . . . Trap Hack Attempts . | . . . Triggered . | . . . Disarmed . | . . . Reprogrammed . | . . . Reused . | . . . Traps Extracted . | . . . Installed . | . . . Triggered . | . . . Machines | -11 -10 -9 ---------- Run | Yrd Mat Mat Machines Disabled . | . . . Max in Single Turn . | . . . Machines Repaired . | . . . Machines Dismantled . | . . . Machines Sabotaged . | . . . Overloaded Fab Kills . | . . . Hacking | -11 -10 -9 --------- Run | Yrd Mat Mat Machines Accessed 2 | . . 2 Terminals 2 | . . 2 Fabricators . | . . . Repair Stations . | . . . Recycling Units . | . . . Scanalyzers . | . . . Garrison Access . | . . . Total Hacks 2 | . . 2 Successful 1 | . . 1 Failed 1 | . . 1 Catastrophic . | . . . Database Lockouts . | . . . Manual . | . . . Terminals 2 | . . 2 Fabricators . | . . . Repair Stations . | . . . Recycling Units . | . . . Scanalyzers . | . . . Garrison Access . | . . . Terminal Hacks 1 | . . 1 Record 1 | . . 1 Fabricator Hacks . | . . . Repair Station Hacks . | . . . Recycling Unit Hacks . | . . . Scanalyzer . | . . . Garrison Access Hacks . | . . . Unauthorized Hacks . | . . . Terminals . | . . . Fabricators . | . . . Repair Stations . | . . . Recycling Units . | . . . Scanalyzers . | . . . Garrison Access . | . . . Data Cores Recovered . | . . . Used . | . . . Hacking Detections 1 | . . 1 Full Trace Events . | . . . Feedback Events . | . . . Feedback Blocked . | . . . Robot Schematics Acquired . | . . . Robots Built . | . . . Authchips . | . . . Time . | . . . Total Robot Build Rating . | . . . Part Schematics Acquired . | . . . Parts Built . | . . . Authchips . | . . . Time . | . . . Total Part Build Rating . | . . . Parts Repaired . | . . . Time . | . . . Parts Recycled . | . . . Recycled Matter . | . . . Retrieved Matter . | . . . Retrieved Components . | . . . Parts Scanalyzed . | . . . Part Schematics Acquired . | . . . Parts Damaged . | . . . Bothacking | -11 -10 -9 ------------ Run | Yrd Mat Mat Used RIF Installer . | . . . Robots Hacked . | . . . Non-combat . | . . . Combat . | . . . Robot Hacks Applied . | . . . Relay Couplers Released . | . . . Fabnet Peak Effective % . | . . . Robots Rewired . | . . . Allies Hacked . | . . . Hacks Repelled . | . . . Allies | -11 -10 -9 -------- Run | Yrd Mat Mat Total Allies . | . . . Largest Group . | . . . Highest-Rated Group . | . . . Highest-Rated Ally . | . . . Total Orders . | . . . Ally Attacks . | . . . Total Damage . | . . . Kills . | . . . Allies Corrupted . | . . . Allies Melted . | . . . Intel | -11 -10 -9 ------- Run | Yrd Mat Mat Active Infowar (turns) . | . . . Robot Analysis Total . | . . . Derelict Logs Recovered . | . . . Drone Launches . | . . . Drone Recoveries . | . . . Exploration | -11 -10 -9 ------------- Run | Yrd Mat Mat Turns Passed 349 | 63 174 112 Spaces Moved 217 | 40 119 58 Core 23 | 17 . 6 Treads 3 | . . 3 Legs 191 | 23 119 49 Wheels . | . . . Hover . | . . . Flight . | . . . Fastest Speed 50 | 50 120 100 Average Speed 118 | 110 120 120 Slowest Speed 160 | 120 120 160 Overloaded Moves . | . . . Propulsion Burnouts . | . . . Robots Hopped . | . . . Potential Cave-ins . | . . . Cave-ins Triggered . | . . . Exploration Rate (%) 17 | 4 32 16 Regions Visited 2 Branch Regions . Pre-discovered Areas . | . . . Known Exits Taken . | . . . Unknown Exits Taken 2 | 1 1 . Scrap Searched . | . . . Spaces Dug . | . . . Terrain Destroyed . | . . . Melee . | . . . Projectile . | . . . AOE . | . . . Terrain Rammed . | . . . Walls Destroyed . | . . . Machines Disabled . | . . . Actions | -11 -10 -9 --------- Run | Yrd Mat Mat Total 284 | 59 146 79 Wait 22 | . 22 . Move 215 | 39 118 58 Hop . | . . . Pick Up 17 | 12 3 2 Fast Attach . | . . . Attach 13 | 6 1 6 Detach . | . . . Swap . | . . . Drop . | . . . Fire 7 | . 2 5 Melee 7 | . . 7 Ram 2 | 2 . . Kick 1 | . . 1 Crush . | . . . Escape Stasis . | . . . Rewire . | . . . Trap . | . . . Miscellaneous . | . . . Route ------- -11/Scrapyard -10/Materials (discovered 2 exits: *Mat / [*Min]) -9/Materials (discovered 1 exit: [*Min]) History --------- Turn | Location | Event 8 | -11/Scrapyard | Discovered new exit (range 15) 64 | -11/Scrapyard | Entered Materials 129 | -10/Materials | Met 8R-AWN 134 | -10/Materials | Discovered new exit (range 16) 211 | -10/Materials | Discovered new exit (range 16) 238 | -10/Materials | Entered another Materials area 238 | -9/Materials | Evolved 2 slots: Propulsion x2 302 | -9/Materials | Discovered new exit (range 15) 326 | -9/Materials | Core integrity fell below 50% 339 | -9/Materials | Core integrity fell below 20% 349 | -9/Materials | Build established: Mutant 350 | -9/Materials | Destroyed by S-10 Pest with Light Assault Rifle Last Messages --------------- 00330_ M-13 Machinist repairs S-10 Pest. 00330_ Destroyed Flight Unit. 00330_ S-10 Pest system corrupted by crushing effect. 00330_ S-10 Pest destroyed. 00331_ S-10 Pest suffers critical hit (Destroy). 00335_ Lgt. Assault Rifle destroyed. 00335_ K-01 Serf collects debris. 00337_ Destroyed Heat Sink. 00337_ Y-45 Defender system corrupted by crushing effect. 00339_ K-01 Serf collects debris. 00340_ Critical hit (Burn: +37). 00348_ S-10 Pest destroyed. 00349_ Y-45 Defender suffers critical hit (Smash). 00349_ Destroyed Heat Sink. 00349_ Destroyed Lgt. Armor Plating. 00349_ Y-45 Defender system corrupted by crushing effect. 00349_ Y-45 Defender IFF system glitched. 00349_ S-10 Pest suffers critical hit (Burn). 00350_ Y-45 Defender system terminally corrupted. 00350_ Lgt. Treads fried. Map ----- +----------------------------------------------------+ | """ # #?# #????????? | | ?# #?# !!= #????????? | | ] ?# #?# !== #????????? | | ??# #?# !== #????????? | | ######## #?###########????????? | | #????????????????????? | | #########????????????? | | # #????????????? | | ######## # """ #????????????? | | ???????# # """ #??###???? ?? | | ???????# # """ #?# ?????""?? | | ???##### # #?# #???? ""?? | | + ### ###? """# | | # # # ? | | # # # """? | | # ""T"" + T + [ """? | | ####+### # """"" # # """? | | ???????# # # = / #??????? | | ???????# ##########% ##??????? | | ???????# #????????#* #???????? | | ???????# ?????????# ######??? | | ???????# ?????????# ## ==#??? | | ???????# ????????## ## ==#??? | | ???????# ????????# | mss!!#??? | | ???????# ????????# % %!!#??? | | ???????# ????????# s @ /#??? | | ???????? ????????# /#??? | | ???????????????????# % #####??? | | ???????????????????## [##??????? | | ????????????????????# #???????? | | ????????????????????# #???????? | | ????????????????????# #???????? | | ????????????????????# #???????? | | ???????????????????? ???????? | | ??????????????????? ???????? | | ??????????????????? ???????? | | ??????????????????# < ???????? | | ??????????????????# ????????? | | ??????????????????#??? ?????????? | | ????????????????????????????????? | | ????????????????????????????????? | | ????????????????????????????????? | | ????????????????????????????????? | | ????????????????????????????????? | | | | | | | | | | | | | +----------------------------------------------------+ Best States ------------- Heat Dissipation 28 Energy Generation 10 Energy Capacity 125 Matter Stores 300 Matter Capacity 300 Sight Range 16 Terrain Scan Density 10 Evasion (%) 55 Recoil Reduction 2 Item Schematics ----------------- None Robot Schematics ------------------ None Fabricated ------------ Nothing Repaired ---------- Nothing Alien Tech Used ----------------- None Achievements -------------- None Challenges ------------ None Game ------ Seed LargeSkeletonClaw Manual? 0 Play Time 00:11:29 Cumulative 11.2 hours Start 2025.05.07 @ 02:05:45 End 2025.05.07 @ 02:27:58 Sessions 1 Manual Loads 0 Difficulty Rogue Special Mode None Game No. 12 Rogue 12 Adventurer 0 Explorer 0 Win Type - Total 0 Types 0/0/0/0/0/0/0/0/0/0 Lore% 4 Gallery% 14 Achievement% 14 Wizard Run 0 Options --------- Layout 0 ASCII 0 Keyboard 0 Movement Numpad Keybinds 0 Fullscreen 2 Font 24/Terminus Map View 76x50 Zoom Use 19% Tactical HUD 1 Map Filters NONE Filters NONE Steam 1 RUN: 89280e4d-5d4a-498d-a1e8-804b681589a1